lending/lending_fUSD_20241005
["ID","MTS","AMOUNT","RATE_DAILY","PERIOD"]
[339929476,1728160263011,-500.0,0.00039178,30]
[339929477,1728160263020,-500.0,0.00039178,30]
[339929478,1728160263031,-787.17,0.00039178,30]
[339929479,1728160263040,-500.0,0.00039178,30]
[339929480,1728160263050,-500.0,0.00039178,30]
[339929481,1728160263059,-500.0,0.00039178,30]
[339929482,1728160263069,-500.0,0.00039178,30]
[339929483,1728160263078,-176.42,0.00039178,30]
[339929484,1728160263088,-500.0,0.00039178,30]
[339929485,1728160263098,-681.86,0.00039178,30]
[339929486,1728160263108,-500.0,0.00039178,30]
[339929487,1728160263119,-529.07,0.00039178,30]
[339929488,1728160263128,-500.0,0.00039178,30]
[339929489,1728160263138,-500.0,0.00039178,30]
[339929490,1728160263148,-500.0,0.00039178,30]
[339929491,1728160263157,-520.51988912,0.00039178,30]
[339929492,1728160263167,-995.14,0.00039178,30]
[339929493,1728160263177,-500.0,0.00039178,30]
[339929494,1728160263186,-1349.08,0.00039178,30]
[339929495,1728160263196,-550.32778404,0.00039178,30]
[339929496,1728160263206,-500.0,0.00039178,30]
[339929497,1728160263215,-500.0,0.00039178,30]
[339929498,1728160263225,-394.58,0.00039178,30]
[339929499,1728160263234,-500.0,0.00039178,30]
[339929500,1728160263244,-500.0,0.00039178,30]
[339929501,1728160263254,-500.0,0.00039178,30]
[339929502,1728160263264,-500.0,0.00039178,30]
[339929503,1728160263273,-163.79500574,0.00039205,30]
[339929504,1728160263283,-152.0,0.00039301,4]
[339929505,1728160263292,-151.0,0.00039318,14]
[339929506,1728160263302,-151.0,0.00039318,14]
[339929507,1728160263311,-151.0,0.00039318,14]
[339929508,1728160263321,-151.0,0.00039318,14]
[339929509,1728160263331,-151.100605,0.00039498,120]
[339929510,1728160263340,-900.0,0.0003952,60]
[339929511,1728160263350,-68764.7445121,0.00039562,2]
[339929512,1728160263360,-500.0,0.00039589,30]
[339929513,1728160263370,-500.0,0.00039589,30]
[339929514,1728160263380,-500.0,0.00039589,30]
[339929515,1728160263389,-500.0,0.00039589,30]
[339929516,1728160263398,-500.0,0.00039589,30]
[339929517,1728160263408,-500.0,0.00039589,30]
[339929518,1728160263417,-405.67753012,0.00039589,30]
[339929519,1728160263427,-206.44290747,0.00039589,30]
[339929520,1728160263437,-500.0,0.00039589,30]
[339929521,1728160263446,-819.04,0.00039589,30]
[339929522,1728160263456,-500.0,0.00039589,30]
[339929523,1728160263465,-500.0,0.00039589,30]
[339929524,1728160263475,-500.0,0.00039589,30]
[339929525,1728160263484,-500.0,0.00039589,30]
[339929526,1728160263494,-589.49426344,0.00039589,30]
[339929527,1728160263504,-500.0,0.00039589,30]
[339929528,1728160263513,-500.0,0.00039589,30]
[339929529,1728160263524,-500.0,0.00039589,30]
[339929530,1728160263534,-500.0,0.00039589,30]
[339929531,1728160263543,-500.0,0.00039589,30]
[339929532,1728160263553,-410.19010734,0.00039589,30]
[339929533,1728160263563,-271.495954,0.00039589,14]
[339929534,1728160263573,-271.495954,0.00039589,14]
[339929535,1728160263582,-713.62,0.00039589,30]
[339929536,1728160263591,-500.0,0.00039589,30]
[339929537,1728160263601,-500.0,0.00039589,30]
[339929538,1728160263611,-443.1,0.00039589,30]
[339929539,1728160263621,-500.0,0.00039589,30]
[339929540,1728160263631,-500.0,0.00039589,30]
[339929541,1728160263641,-588.86,0.00039589,30]
[339929542,1728160263651,-500.0,0.00039589,30]
[339929543,1728160263660,-500.0,0.00039589,30]
[339929544,1728160263670,-500.0,0.00039589,30]
[339929545,1728160263680,-383.8647245,0.00039589,30]
[339929546,1728160263689,-500.0,0.00039589,30]
[339929547,1728160263700,-500.0,0.00039589,30]
[339929548,1728160263710,-500.0,0.00039589,30]
[339929549,1728160263720,-500.0,0.00039589,30]
[339929550,1728160263730,-500.0,0.00039589,30]
[339929551,1728160263740,-278.01153912,0.00039589,30]
[339929552,1728160263749,-610.35080995,0.00039589,30]
[339929553,1728160263759,-500.0,0.00039589,30]
[339929554,1728160263768,-500.0,0.00039589,30]
[339929555,1728160263778,-178.00134701,0.00039589,30]
[339929556,1728160263788,-500.0,0.00039589,30]
[339929557,1728160263798,-500.0,0.00039589,30]
[339929558,1728160263807,-500.0,0.00039589,30]
[339929559,1728160263817,-233.08238626,0.00039589,30]
[339929560,1728160263827,-711.55,0.00039589,30]
[339929561,1728160263837,-500.0,0.00039589,30]
[339929562,1728160263846,-500.0,0.00039589,30]
[339929563,1728160263856,-500.0,0.00039589,30]
[339929564,1728160263866,-500.0,0.00039589,30]
[339929565,1728160263876,-500.0,0.00039589,30]
[339929566,1728160263885,-500.0,0.00039589,30]
[339929567,1728160263894,-378.50068793,0.00039589,30]
[339929568,1728160263904,-500.0,0.00039589,30]
[339929569,1728160263913,-500.0,0.00039589,30]
[339929570,1728160263924,-500.0,0.00039589,30]
[339929571,1728160263933,-500.0,0.00039589,30]
[339929572,1728160263943,-238.14,0.00039589,30]
[339929573,1728160263952,-500.0,0.00039589,30]
[339929574,1728160263961,-500.0,0.00039589,30]
[339929575,1728160263971,-500.0,0.00039589,30]
[339929576,1728160263981,-500.0,0.00039589,30]
[339929577,1728160263990,-500.0,0.00039589,30]
[339929578,1728160264000,-500.0,0.00039589,30]
[339929579,1728160264009,-500.0,0.00039589,30]
[339929580,1728160264019,-500.0,0.00039589,30]
[339929581,1728160264029,-500.0,0.00039589,30]
[339929582,1728160264039,-500.0,0.00039589,30]
[339929583,1728160264048,-500.0,0.00039589,30]
[339929584,1728160264057,-500.0,0.00039589,30]
[339929585,1728160264067,-500.0,0.00039589,30]
[339929586,1728160264076,-632.19,0.00039589,30]
[339929587,1728160264085,-500.0,0.00039589,30]
[339929588,1728160264095,-664.29,0.00039589,30]
[339929589,1728160264104,-160.06635071,0.00039589,30]
[339929590,1728160264114,-500.0,0.00039589,30]
[339929591,1728160264123,-500.0,0.00039589,30]
[339929592,1728160264132,-500.0,0.00039589,30]
[339929593,1728160264143,-500.0,0.00039589,30]
[339929594,1728160264152,-500.0,0.00039589,30]
[339929595,1728160264161,-500.0,0.00039589,30]
[339929596,1728160264171,-500.0,0.00039589,30]
[339929597,1728160264181,-1092.13,0.00039589,30]
[339929598,1728160264190,-526.04189625,0.00039589,30]
[339929599,1728160264200,-401.59,0.00039589,30]
[339929600,1728160264209,-500.0,0.00039589,30]
[339929601,1728160264219,-500.0,0.00039589,30]
[339929602,1728160264229,-575.62,0.00039589,30]
[339929603,1728160264238,-500.0,0.00039589,30]
[339929604,1728160264248,-500.0,0.00039589,30]
[339929605,1728160264258,-500.0,0.00039589,30]
[339929606,1728160264267,-321.81308664,0.00039589,30]
[339929607,1728160264277,-500.0,0.00039589,30]
[339929608,1728160264287,-500.0,0.00039589,30]
[339929609,1728160264296,-500.0,0.00039589,30]
[339929610,1728160264307,-500.0,0.00039589,30]
[339929611,1728160264316,-740.53,0.00039589,30]
[339929612,1728160264326,-500.0,0.00039589,30]
[339929613,1728160264336,-500.0,0.00039589,30]
[339929614,1728160264346,-500.0,0.00039589,30]
[339929615,1728160264356,-500.0,0.00039589,30]
[339929616,1728160264366,-500.0,0.00039589,30]
[339929617,1728160264375,-500.0,0.00039589,30]
[339929618,1728160264385,-500.0,0.00039589,30]
[339929619,1728160264395,-500.0,0.00039589,30]
[339929620,1728160264405,-500.0,0.00039589,30]
[339929621,1728160264415,-1003.23,0.00039589,30]
[339929622,1728160264425,-500.0,0.00039589,30]
[339929623,1728160264434,-500.0,0.00039589,30]
[339929624,1728160264443,-500.0,0.00039589,30]
[339929625,1728160264453,-500.0,0.00039589,30]
[339929626,1728160264462,-500.0,0.00039589,30]
[339929627,1728160264471,-773.95,0.00039589,30]
[339929628,1728160264481,-1041.19,0.00039589,30]
[339929629,1728160264490,-500.0,0.00039589,30]
[339929630,1728160264500,-855.74,0.00039589,30]
[339929631,1728160264509,-522.45,0.00039589,30]
[339929632,1728160264519,-500.0,0.00039589,30]
[339929633,1728160264529,-640.88,0.00039589,30]
[339929634,1728160264539,-500.0,0.00039589,30]
[339929635,1728160264548,-500.0,0.00039589,24]
[339929636,1728160264558,-500.0,0.00039589,30]
[339929637,1728160264567,-528.13,0.00039589,30]
[339929638,1728160264577,-500.0,0.00039589,30]
[339929639,1728160264586,-500.0,0.00039589,30]
[339929640,1728160264595,-540.71,0.00039589,30]
[339929641,1728160264605,-1571.62,0.00039589,30]
[339929642,1728160264615,-500.0,0.00039589,30]
[339929643,1728160264624,-229.58,0.00039589,30]
[339929644,1728160264634,-906.95,0.00039589,30]
[339929645,1728160264645,-500.0,0.00039589,30]
[339929646,1728160264655,-500.0,0.00039589,30]
[339929647,1728160264665,-500.0,0.00039589,30]
[339929648,1728160264674,-910.76,0.00039589,30]
[339929649,1728160264684,-1000.0,0.00039589,30]
[339929650,1728160264693,-500.0,0.00039589,30]
[339929651,1728160264703,-1100.09,0.00039589,30]
[339929652,1728160264716,-802.95,0.00039589,30]
[339929653,1728160264725,-431.49024606,0.00039589,30]
[339929654,1728160264735,-843.51,0.00039589,30]
[339929655,1728160264744,-942.42,0.00039589,30]
[339929656,1728160264755,-500.0,0.00039589,30]
[339929657,1728160264764,-500.0,0.00039589,30]
[339929658,1728160264775,-500.0,0.00039589,30]
[339929659,1728160264785,-500.0,0.00039589,30]
[339929660,1728160264795,-482.86,0.00039589,30]
[339929661,1728160264804,-1026.8,0.00039589,30]
[339929662,1728160264815,-500.0,0.00039589,30]
[339929663,1728160264825,-458.29921869,0.00039589,30]
[339929664,1728160264834,-1281.74,0.00039589,30]
[339929665,1728160264844,-500.0,0.00039589,30]
[339929666,1728160264854,-500.0,0.00039589,30]
[339929667,1728160264863,-500.0,0.00039589,30]
[339929668,1728160264873,-994.5,0.00039589,30]
[339929669,1728160264883,-500.0,0.00039589,30]
[339929670,1728160264893,-500.0,0.00039589,30]
[339929671,1728160264902,-244.29799568,0.00039589,30]
[339929672,1728160264912,-938.76,0.00039589,30]
[339929673,1728160264922,-500.0,0.00039589,30]
[339929674,1728160264933,-432.62812311,0.00039589,30]
[339929675,1728160264943,-500.0,0.00039589,30]
[339929676,1728160264953,-1170.38,0.00039589,30]
[339929677,1728160264963,-500.0,0.00039589,30]
[339929678,1728160264973,-912.82,0.00039589,30]
[339929679,1728160264983,-1002.9,0.00039589,30]
[339929680,1728160264992,-500.0,0.00039589,30]
[339929681,1728160265002,-500.0,0.00039589,30]
[339929682,1728160265012,-500.0,0.00039589,30]
[339929683,1728160265022,-500.0,0.00039589,30]
[339929684,1728160265033,-645.58501575,0.00039589,30]
[339929685,1728160265043,-500.0,0.00039589,30]
[339929686,1728160265053,-1084.38,0.00039589,30]
[339929687,1728160265062,-706.32,0.00039589,30]
[339929688,1728160265072,-1023.73,0.00039589,30]
[339929689,1728160265082,-500.0,0.00039589,30]
[339929690,1728160265091,-500.0,0.00039589,30]
[339929691,1728160265101,-500.0,0.00039589,30]
[339929692,1728160265111,-500.0,0.00039589,30]
[339929693,1728160265121,-842.51,0.00039589,30]
[339929694,1728160265131,-500.0,0.00039589,30]
[339929695,1728160265141,-482.90594976,0.00039589,30]
[339929696,1728160265151,-689.81,0.00039589,30]
[339929697,1728160265161,-532.86,0.00039589,30]
[339929698,1728160265306,-500.0,0.00039589,30]
[339929699,1728160265315,-500.0,0.00039589,30]
[339929700,1728160265324,-500.0,0.00039589,30]
[339929701,1728160265334,-500.0,0.00039589,30]
[339929702,1728160265344,-500.0,0.00039589,30]
[339929703,1728160265353,-1071.49,0.00039589,30]
[339929704,1728160265362,-500.0,0.00039589,30]
[339929705,1728160265371,-500.0,0.00039589,30]
[339929706,1728160265380,-1043.66,0.00039589,30]
[339929707,1728160265389,-500.0,0.00039589,30]
[339929708,1728160265397,-500.0,0.00039589,30]
[339929709,1728160265406,-500.0,0.00039589,30]
[339929710,1728160265415,-500.0,0.00039589,30]
[339929711,1728160265424,-1009.53,0.00039589,30]
[339929712,1728160265433,-500.0,0.00039589,30]
[339929713,1728160265442,-500.0,0.00039589,30]
[339929714,1728160265451,-787.17,0.00039589,30]
[339929715,1728160265460,-364.63,0.00039589,30]
[339929716,1728160265470,-500.0,0.00039589,30]
[339929717,1728160265479,-500.0,0.00039589,30]
[339929718,1728160265488,-500.0,0.00039589,30]
[339929719,1728160265497,-367.14521632,0.00039589,30]
[339929720,1728160265506,-681.86,0.00039589,30]
[339929721,1728160265515,-565.01642203,0.00039589,30]
[339929722,1728160265524,-529.07,0.00039589,30]
[339929723,1728160265534,-500.0,0.00039589,30]
[339929724,1728160265544,-500.0,0.00039589,30]
[339929725,1728160265553,-495.35065326,0.00039589,30]
[339929726,1728160265562,-995.14,0.00039589,30]
[339929727,1728160265572,-500.0,0.00039589,30]
[339929728,1728160265581,-1349.08,0.00039589,30]
[339929729,1728160265591,-500.0,0.00039589,30]
[339929730,1728160265600,-500.0,0.00039589,30]
[339929731,1728160265610,-500.0,0.00039589,30]
[339929732,1728160265620,-500.0,0.00039589,30]
[339929733,1728160265629,-500.0,0.00039589,30]
[339929734,1728160265639,-500.0,0.00039589,30]
[339929735,1728160265649,-150.0,0.000396,120]
[339929736,1728160265658,-11721.6404214,0.00039668,2]
[339929737,1728160265667,-3064.2719047,0.00039668,2]
[339929738,1728160265677,-1261297.7041078,0.00039695,2]
[339929739,1728160265686,-151.0,0.00039696,14]
[339929740,1728160265695,-151.0,0.00039696,14]
[339929741,1728160265705,-151.0,0.00039696,14]
[339929742,1728160265718,-151.0,0.00039696,14]
[339929743,1728160265727,-153.074152,0.00039696,14]
[339929744,1728160265737,-151.0,0.00039696,14]
[339929745,1728160265746,-151.0,0.00039696,14]
[339929746,1728160265756,-151.0,0.00039696,14]
[339929747,1728160265766,-151.0,0.00039696,14]
[339929748,1728160265777,-295.22384,0.00039696,14]
[339929749,1728160265786,-295.22384,0.00039696,14]
[339929750,1728160265796,-151.0,0.00039696,14]
[339929751,1728160265806,-151.0,0.00039696,14]
[339929752,1728160265815,-271.495954,0.00039696,14]
[339929753,1728160265825,-271.495954,0.00039696,14]
[339929754,1728160265835,-151.0,0.00039696,14]
[339929755,1728160265845,-280.104999,0.00039696,14]
[339929756,1728160265854,-280.104999,0.00039696,14]
[339929757,1728160265863,-151.0,0.00039696,14]
[339929758,1728160265873,-274.526557,0.00039696,14]
[339929759,1728160265882,-152.693768,0.00039696,14]
[339929760,1728160265892,-151.0,0.00039696,14]
[339929761,1728160265901,-151.0,0.00039696,14]
[339929762,1728160265910,-151.0,0.00039696,14]
[339929763,1728160265920,-151.0,0.00039696,14]
[339929764,1728160265929,-226.880495,0.00039696,14]
[339929765,1728160265939,-151.0,0.00039696,14]
[339929766,1728160265949,-151.0,0.00039696,14]
[339929767,1728160265958,-151.0,0.00039696,14]
[339929768,1728160265967,-151.0,0.00039696,14]
[339929769,1728160265977,-151.0,0.00039696,14]
[339929770,1728160265986,-210.698535,0.00039696,14]
[339929771,1728160265996,-151.0,0.00039696,14]
[339929772,1728160266005,-151.0,0.00039696,14]
[339929773,1728160266015,-151.0,0.00039696,14]
[339929774,1728160266024,-151.0,0.00039696,14]
[339929775,1728160266033,-151.0,0.00039696,14]
[339929776,1728160266043,-163.79500574,0.00039699,30]
[339929777,1728160266053,-500.0,0.00039821,7]
[339929778,1728160266062,-500.0,0.00039821,7]
[339929779,1728160266071,-500.0,0.00039821,7]
[339929780,1728160266081,-500.0,0.00039821,7]
[339929781,1728160266090,-500.0,0.00039821,7]
[339929782,1728160266099,-500.0,0.00039821,7]
[339929783,1728160266108,-285.7,0.00039821,7]
[339929784,1728160266117,-500.0,0.00039821,7]
[339929785,1728160266128,-500.0,0.00039821,7]
[339929786,1728160266139,-500.0,0.00039821,7]
[339929787,1728160266148,-500.0,0.00039821,7]
[339929788,1728160266157,-500.0,0.00039821,7]
[339929789,1728160266166,-264.01,0.00039821,7]
[339929790,1728160266176,-500.0,0.00039821,7]
[339929791,1728160266185,-500.0,0.00039821,7]
[339929792,1728160266193,-302.75,0.0003989,2]
[339929793,1728160266202,-422.01,0.0003989,2]
[339929794,1728160266211,-857.42,0.0003989,2]
[339929795,1728160266220,-163.87,0.0003989,2]
[339929796,1728160266229,-302.97,0.0003989,2]
[339929797,1728160266238,-150.0,0.0003989,2]
[339929798,1728160266247,-150.0,0.0003989,2]
[339929799,1728160266256,-150.0,0.0003989,2]
[339929800,1728160266266,-552.24,0.00039935,2]
[339929801,1728160266275,-50000.0,0.0004,30]
[339929802,1728160266285,-50000.0,0.0004,40]
[339929803,1728160266293,-500.0,0.0004,30]
[339929804,1728160266303,-500.0,0.0004,30]
[339929805,1728160266312,-500.0,0.0004,30]
[339929806,1728160266321,-500.0,0.0004,30]
[339929807,1728160266331,-500.0,0.0004,30]
[339929808,1728160266340,-500.0,0.0004,30]
[339929809,1728160266349,-169.44991916,0.0004,30]
[339929810,1728160266359,-819.04,0.0004,30]
[339929811,1728160266368,-500.0,0.0004,30]
[339929812,1728160266377,-500.0,0.0004,30]
[339929813,1728160266387,-243.84936284,0.0004,30]
[339929814,1728160266396,-500.0,0.0004,30]
[339929815,1728160266405,-327.99705541,0.0004,30]
[339929816,1728160266414,-500.0,0.0004,30]
[339929817,1728160266424,-500.0,0.0004,30]
[339929818,1728160266433,-500.0,0.0004,30]
[339929819,1728160266442,-500.0,0.0004,30]
[339929820,1728160266451,-713.62,0.0004,30]
[339929821,1728160266461,-500.0,0.0004,30]
[339929822,1728160266470,-500.0,0.0004,30]
[339929823,1728160266479,-500.0,0.0004,30]
[339929824,1728160266488,-500.0,0.0004,30]
[339929825,1728160266497,-500.0,0.0004,30]
[339929826,1728160266507,-297.34382056,0.0004,30]
[339929827,1728160266517,-500.0,0.0004,30]
[339929828,1728160266527,-500.0,0.0004,30]
[339929829,1728160266535,-500.0,0.0004,30]
[339929830,1728160266545,-500.0,0.0004,30]
[339929831,1728160266554,-500.0,0.0004,30]
[339929832,1728160266563,-500.0,0.0004,30]
[339929833,1728160266572,-500.0,0.0004,30]
[339929834,1728160266581,-500.0,0.0004,30]
[339929835,1728160266590,-500.0,0.0004,30]
[339929836,1728160266599,-500.0,0.0004,30]
[339929837,1728160266608,-500.0,0.0004,30]
[339929838,1728160266618,-711.55,0.0004,30]
[339929839,1728160266627,-366.25982096,0.0004,30]
[339929840,1728160266651,-500.0,0.0004,30]
[339929841,1728160266660,-500.0,0.0004,30]
[339929842,1728160266671,-500.0,0.0004,30]
[339929843,1728160266680,-500.0,0.0004,30]
[339929844,1728160266690,-500.0,0.0004,30]
[339929845,1728160266700,-500.0,0.0004,30]
[339929846,1728160266712,-500.0,0.0004,30]
[339929847,1728160266722,-500.0,0.0004,30]
[339929848,1728160266732,-500.0,0.0004,30]
[339929849,1728160266742,-238.14,0.0004,30]
[339929850,1728160266751,-500.0,0.0004,30]
[339929851,1728160266761,-500.0,0.0004,30]
[339929852,1728160266770,-500.0,0.0004,30]
[339929853,1728160266781,-500.0,0.0004,30]
[339929854,1728160266793,-500.0,0.0004,30]
[339929855,1728160266802,-370.87077844,0.0004,30]
[339929856,1728160266812,-500.0,0.0004,30]
[339929857,1728160266821,-499.74148163,0.0004,30]
[339929858,1728160266832,-257.57220513,0.0004,30]
[339929859,1728160266842,-500.0,0.0004,30]
[339929860,1728160266852,-500.0,0.0004,30]
[339929861,1728160266862,-500.0,0.0004,30]
[339929862,1728160266871,-392.8030425,0.0004,30]
[339929863,1728160266880,-500.0,0.0004,30]
[339929864,1728160266890,-664.29,0.0004,30]
[339929865,1728160266899,-500.0,0.0004,30]
[339929866,1728160266908,-500.0,0.0004,30]
[339929867,1728160266918,-500.0,0.0004,30]
[339929868,1728160266927,-426.26,0.0004,30]
[339929869,1728160266936,-500.0,0.0004,30]
[339929870,1728160266946,-500.0,0.0004,30]
[339929871,1728160266955,-500.0,0.0004,30]
[339929872,1728160266964,-1092.13,0.0004,30]
[339929873,1728160266973,-500.0,0.0004,30]
[339929874,1728160266982,-500.0,0.0004,30]
[339929875,1728160266992,-575.62,0.0004,30]
[339929876,1728160267001,-500.0,0.0004,30]
[339929877,1728160267011,-500.0,0.0004,30]
[339929878,1728160267020,-500.0,0.0004,30]
[339929879,1728160267031,-500.0,0.0004,30]
[339929880,1728160267041,-500.0,0.0004,30]
[339929881,1728160267050,-359.18,0.0004,30]
[339929882,1728160267060,-500.0,0.0004,30]
[339929883,1728160267069,-740.53,0.0004,30]
[339929884,1728160267079,-500.0,0.0004,30]
[339929885,1728160267088,-409.37764405,0.0004,30]
[339929886,1728160267098,-500.0,0.0004,30]
[339929887,1728160267108,-500.0,0.0004,30]
[339929888,1728160267118,-500.0,0.0004,30]
[339929889,1728160267128,-500.0,0.0004,30]
[339929890,1728160267137,-500.0,0.0004,30]
[339929891,1728160267147,-500.0,0.0004,30]
[339929892,1728160267156,-1003.23,0.0004,30]
[339929893,1728160267165,-500.0,0.0004,30]
[339929894,1728160267174,-500.0,0.0004,30]
[339929895,1728160267184,-500.0,0.0004,30]
[339929896,1728160267193,-500.0,0.0004,30]
[339929897,1728160267202,-1088.78969802,0.0004,120]
[339929898,1728160267211,-500.0,0.0004,30]
[339929899,1728160267221,-773.95,0.0004,30]
[339929900,1728160267230,-1041.19,0.0004,30]
[339929901,1728160267239,-500.0,0.0004,30]
[339929902,1728160267248,-855.74,0.0004,30]
[339929903,1728160267257,-84399.14181296,0.0004,30]
[339929904,1728160267267,-522.45,0.0004,30]
[339929905,1728160267277,-500.0,0.0004,30]
[339929906,1728160267286,-500.0,0.0004,30]
[339929907,1728160267296,-500.0,0.0004,24]
[339929908,1728160267305,-500.0,0.0004,30]
[339929909,1728160267315,-528.13,0.0004,30]
[339929910,1728160267324,-500.0,0.0004,30]
[339929911,1728160267334,-500.0,0.0004,30]
[339929912,1728160267344,-540.71,0.0004,30]
[339929913,1728160267353,-1487.64494148,0.0004,30]
[339929914,1728160267363,-1571.62,0.0004,30]
[339929915,1728160267372,-500.0,0.0004,30]
[339929916,1728160267381,-906.95,0.0004,30]
[339929917,1728160267391,-613.11442935,0.0004,30]
[339929918,1728160267401,-274.73332144,0.0004,30]
[339929919,1728160267411,-500.0,0.0004,30]
[339929920,1728160267420,-910.76,0.0004,30]
[339929921,1728160267430,-1000.0,0.0004,30]
[339929922,1728160267439,-500.0,0.0004,30]
[339929923,1728160267449,-1100.09,0.0004,30]
[339929924,1728160267458,-802.95,0.0004,30]
[339929925,1728160267467,-843.51,0.0004,30]
[339929926,1728160267477,-942.42,0.0004,30]
[339929927,1728160267486,-500.0,0.0004,30]
[339929928,1728160267495,-500.0,0.0004,30]
[339929929,1728160267505,-500.0,0.0004,30]
[339929930,1728160267515,-500.0,0.0004,30]
[339929931,1728160267525,-1026.8,0.0004,30]
[339929932,1728160267534,-500.0,0.0004,30]
[339929933,1728160267544,-1281.74,0.0004,30]
[339929934,1728160267553,-500.0,0.0004,30]
[339929935,1728160267562,-500.0,0.0004,30]
[339929936,1728160267571,-500.0,0.0004,30]
[339929937,1728160267581,-994.5,0.0004,30]
[339929938,1728160267590,-600.2802537,0.0004,30]
[339929939,1728160267599,-220.42116465,0.0004,30]
[339929940,1728160267609,-938.76,0.0004,30]
[339929941,1728160267617,-500.0,0.0004,30]
[339929942,1728160267627,-500.0,0.0004,30]
[339929943,1728160267637,-1170.38,0.0004,30]
[339929944,1728160267647,-354.30386571,0.0004,30]
[339929945,1728160267657,-912.82,0.0004,30]
[339929946,1728160267666,-1002.9,0.0004,30]
[339929947,1728160267675,-245.02,0.0004,30]
[339929948,1728160267685,-500.0,0.0004,30]
[339929949,1728160267694,-500.0,0.0004,30]
[339929950,1728160267703,-500.0,0.0004,30]
[339929951,1728160267713,-500.0,0.0004,30]
[339929952,1728160267722,-1084.38,0.0004,30]
[339929953,1728160267731,-706.32,0.0004,30]
[339929954,1728160267740,-1023.73,0.0004,30]
[339929955,1728160267749,-1050.06061874,0.0004,120]
[339929956,1728160267759,-500.0,0.0004,30]
[339929957,1728160267768,-770.14112984,0.0004,60]
[339929958,1728160267778,-494.49256692,0.0004,30]
[339929959,1728160267787,-500.0,0.0004,30]
[339929960,1728160267797,-500.0,0.0004,30]
[339929961,1728160267806,-842.51,0.0004,30]
[339929962,1728160267816,-500.0,0.0004,30]
[339929963,1728160267825,-689.81,0.0004,30]
[339929964,1728160267834,-532.86,0.0004,30]
[339929965,1728160267843,-500.0,0.0004,30]
[339929966,1728160267853,-500.0,0.0004,30]
[339929967,1728160267863,-500.0,0.0004,30]
[339929968,1728160267872,-500.0,0.0004,30]
[339929969,1728160267882,-500.0,0.0004,30]
[339929970,1728160267893,-1071.49,0.0004,30]
[339929971,1728160267903,-500.0,0.0004,30]
[339929972,1728160267912,-500.0,0.0004,30]
[339929973,1728160267922,-1043.66,0.0004,30]
[339929974,1728160267932,-500.0,0.0004,30]
[339929975,1728160267941,-500.0,0.0004,30]